[Event "Early-Titled-Tuesday-Blitz-February-13-2024"]
[Site "Chess.com"]
[Date "2024.02.13"]
[Round "2"]
[White "temus_galaktionov"]
[Black "AttackSparrow"]
[Result "1-0"]
[WhiteElo "2914"]
[BlackElo "2623"]
[TimeControl "180+1"]
[EndTime "8:18:28 PST"]
[Termination "temus_galaktionov won by resignation"]

1. d4 {[%clk 0:03:00.9]} 1... d5 {[%clk 0:02:59.7]} 2. Nf3 {[%clk 0:02:59.7]}
2... Nf6 {[%clk 0:02:59.1]} 3. c4 {[%clk 0:03:00.3]} 3... e6 {[%clk 0:02:59.2]}
4. Nc3 {[%clk 0:03:00.3]} 4... Bb4 {[%clk 0:02:59.2]} 5. cxd5 {[%clk 0:03:00]}
5... exd5 {[%clk 0:03:00.1]} 6. Bg5 {[%clk 0:03:00.4]} 6... h6 {[%clk
0:03:00.2]} 7. Bxf6 {[%clk 0:03:00.5]} 7... Qxf6 {[%clk 0:03:00.1]} 8. e3 {[%clk
0:03:01.4]} 8... c6 {[%clk 0:02:59.2]} 9. Bd3 {[%clk 0:03:01.3]} 9... O-O {[%clk
0:02:56.7]} 10. O-O {[%clk 0:03:01]} 10... Re8 {[%clk 0:02:53.3]} 11. a3 {[%clk
0:03:00.8]} 11... Bd6 {[%clk 0:02:51.6]} 12. e4 {[%clk 0:03:00.8]} 12... dxe4
{[%clk 0:02:49.5]} 13. Nxe4 {[%clk 0:03:01.7]} 13... Qd8 {[%clk 0:02:50.1]} 14.
Re1 {[%clk 0:03:01.7]} 14... Bf8 {[%clk 0:02:43.7]} 15. h3 {[%clk 0:03:00]}
15... Be6 {[%clk 0:02:43.1]} 16. Nc5 {[%clk 0:02:58.5]} 16... Bxc5 {[%clk
0:02:36.6]} 17. dxc5 {[%clk 0:02:56.5]} 17... Nd7 {[%clk 0:02:37.1]} 18. b4
{[%clk 0:02:49.2]} 18... Bd5 {[%clk 0:02:29.9]} 19. Rxe8+ {[%clk 0:02:33.7]}
19... Qxe8 {[%clk 0:02:30.8]} 20. Bf5 {[%clk 0:02:26.9]} 20... Rd8 {[%clk
0:02:15.2]} 21. Qd3 {[%clk 0:02:20.7]} 21... Ne5 {[%clk 0:02:04.2]} 22. Nxe5
{[%clk 0:02:20.8]} 22... Qxe5 {[%clk 0:02:05.1]} 23. Rd1 {[%clk 0:02:20.8]}
23... Re8 {[%clk 0:01:58.8]} 24. Bg4 {[%clk 0:02:17.2]} 24... Qf4 {[%clk
0:01:49]} 25. Qc3 {[%clk 0:01:54]} 25... g6 {[%clk 0:01:32.6]} 26. Re1 {[%clk
0:01:52.7]} 26... Rxe1+ {[%clk 0:01:30.6]} 27. Qxe1 {[%clk 0:01:53.6]} 27... h5
{[%clk 0:01:19.6]} 28. Bc8 {[%clk 0:01:48.4]} 28... b6 {[%clk 0:01:20]} 29. Qe3
{[%clk 0:01:40.6]} 29... Qc7 {[%clk 0:01:04.2]} 30. Ba6 {[%clk 0:01:18.1]} 30...
b5 {[%clk 0:01:00]} 31. Qe8+ {[%clk 0:01:08]} 31... Kh7 {[%clk 0:00:57.2]} 32.
f3 {[%clk 0:01:05.7]} 32... Qf4 {[%clk 0:00:52.5]} 33. Kf2 {[%clk 0:01:05]}
33... Qe4 {[%clk 0:00:30.6]} 34. fxe4 {[%clk 0:01:03.2]} 1-0

[Event "Early-Titled-Tuesday-Blitz-February-13-2024"]
[Site "Chess.com"]
[Date "2024.02.13"]
[Round "2"]
[White "Crazy_girl99"]
[Black "BlueWizzard"]
[Result "0-1"]
[WhiteElo "2599"]
[BlackElo "2872"]
[TimeControl "180+1"]
[EndTime "8:18:28 PST"]
[Termination "BlueWizzard won by resignation"]

1. e4 {[%clk 0:03:00.9]} 1... g6 {[%clk 0:03:00.9]} 2. d4 {[%clk 0:02:56.7]}
2... d5 {[%clk 0:03:01.6]} 3. e5 {[%clk 0:02:55.3]} 3... c5 {[%clk 0:03:01.7]}
4. c3 {[%clk 0:02:55.4]} 4... Nc6 {[%clk 0:03:01.5]} 5. h3 {[%clk 0:02:52.9]}
5... cxd4 {[%clk 0:02:52.4]} 6. cxd4 {[%clk 0:02:52.7]} 6... Nh6 {[%clk
0:02:53.1]} 7. Nf3 {[%clk 0:02:52.4]} 7... Bg7 {[%clk 0:02:52.5]} 8. Nc3 {[%clk
0:02:52.6]} 8... O-O {[%clk 0:02:49.5]} 9. Qb3 {[%clk 0:02:39.1]} 9... Nf5
{[%clk 0:02:47.8]} 10. Be3 {[%clk 0:02:32.4]} 10... Be6 {[%clk 0:02:40.1]} 11.
Bd3 {[%clk 0:02:17.8]} 11... Nxe3 {[%clk 0:02:33.8]} 12. fxe3 {[%clk 0:02:16.9]}
12... Nxe5 {[%clk 0:02:32.1]} 13. Nxe5 {[%clk 0:01:33.7]} 13... Bxe5 {[%clk
0:02:30.6]} 14. dxe5 {[%clk 0:01:33.8]} 14... d4 {[%clk 0:02:31.1]} 15. Bc4
{[%clk 0:01:30.8]} 15... dxc3 {[%clk 0:02:25.6]} 16. Bxe6 {[%clk 0:01:15]} 16...
Qd2+ {[%clk 0:02:18.8]} 17. Kf1 {[%clk 0:01:10]} 17... c2 {[%clk 0:01:58.2]} 18.
Qc3 {[%clk 0:00:40.9]} 18... fxe6+ {[%clk 0:01:50.4]} 19. Kg1 {[%clk 0:00:40.9]}
19... Qxc3 {[%clk 0:01:32.4]} 20. bxc3 {[%clk 0:00:40]} 20... Rac8 {[%clk
0:01:29.6]} 21. Kh2 {[%clk 0:00:39.7]} 21... Rxc3 {[%clk 0:01:29.6]} 22. Rhe1
{[%clk 0:00:39.8]} 22... Rf5 {[%clk 0:01:22.9]} 23. Rac1 {[%clk 0:00:39.3]}
23... Rxe5 {[%clk 0:01:21.8]} 24. e4 {[%clk 0:00:39.8]} 24... b5 {[%clk
0:01:21.3]} 25. Re2 {[%clk 0:00:39.8]} 25... Rec5 {[%clk 0:01:20.9]} 26. Kg1
{[%clk 0:00:38.1]} 26... b4 {[%clk 0:01:19.9]} 27. Kf2 {[%clk 0:00:37.1]} 27...
a5 {[%clk 0:01:20.3]} 28. Re3 {[%clk 0:00:32.4]} 28... Rxe3 {[%clk 0:01:00.3]}
29. Kxe3 {[%clk 0:00:33.3]} 29... a4 {[%clk 0:01:00.8]} 30. Kd4 {[%clk
0:00:32.9]} 30... Rc8 {[%clk 0:00:58.1]} 0-1

[Event "Early-Titled-Tuesday-Blitz-February-13-2024"]
[Site "Chess.com"]
[Date "2024.02.13"]
[Round "2"]
[White "bilosuvenosu06"]
[Black "Viktor_Poddubnyi"]
[Result "1-0"]
[WhiteElo "2530"]
[BlackElo "2288"]
[TimeControl "180+1"]
[EndTime "8:18:29 PST"]
[Termination "bilosuvenosu06 won on time"]

1. d4 {[%clk 0:02:54.3]} 1... g6 {[%clk 0:03:00.2]} 2. c4 {[%clk 0:02:54]} 2...
Bg7 {[%clk 0:03:00.8]} 3. Nc3 {[%clk 0:02:54.4]} 3... c5 {[%clk 0:03:01.4]} 4.
d5 {[%clk 0:02:54]} 4... f5 {[%clk 0:03:01.9]} 5. Bd2 {[%clk 0:02:52.9]} 5...
Nf6 {[%clk 0:03:00.9]} 6. e3 {[%clk 0:02:49.2]} 6... e6 {[%clk 0:03:00.2]} 7.
Bd3 {[%clk 0:02:47]} 7... exd5 {[%clk 0:02:57.4]} 8. cxd5 {[%clk 0:02:47.9]}
8... d6 {[%clk 0:02:56.2]} 9. Nge2 {[%clk 0:02:47.5]} 9... O-O {[%clk
0:02:53.1]} 10. O-O {[%clk 0:02:46.8]} 10... Nbd7 {[%clk 0:02:43]} 11. Ng3
{[%clk 0:02:31.3]} 11... Ne5 {[%clk 0:02:38.5]} 12. Be2 {[%clk 0:02:31.3]} 12...
a6 {[%clk 0:02:30.9]} 13. a4 {[%clk 0:02:31.1]} 13... Qe7 {[%clk 0:02:30.4]} 14.
Rc1 {[%clk 0:02:28.7]} 14... Bd7 {[%clk 0:02:28.3]} 15. Qb3 {[%clk 0:02:27.3]}
15... Rab8 {[%clk 0:02:21.1]} 16. a5 {[%clk 0:02:27.3]} 16... h5 {[%clk
0:02:03.6]} 17. Rfe1 {[%clk 0:02:21.3]} 17... h4 {[%clk 0:01:59.7]} 18. Nf1
{[%clk 0:02:21.3]} 18... Qf7 {[%clk 0:01:28]} 19. f4 {[%clk 0:02:20.1]} 19... c4
{[%clk 0:01:08.2]} 20. Bxc4 {[%clk 0:02:14]} 20... Nxc4 {[%clk 0:01:08]} 21.
Qxc4 {[%clk 0:02:14.9]} 21... h3 {[%clk 0:00:54.4]} 22. gxh3 {[%clk 0:02:09.7]}
22... Rbe8 {[%clk 0:00:34.7]} 23. Ng3 {[%clk 0:02:08.5]} 23... Bh6 {[%clk
0:00:28.5]} 24. Qb4 {[%clk 0:02:07.4]} 24... Qe7 {[%clk 0:00:20.1]} 25. Nce2
{[%clk 0:01:57.7]} 25... Ne4 {[%clk 0:00:13]} 26. Nd4 {[%clk 0:01:35]} 26... g5
{[%clk 0:00:06.8]} 27. Kg2 {[%clk 0:01:32]} 27... g4 {[%clk 0:00:02.3]} 28. hxg4
{[%clk 0:01:29.7]} 28... fxg4 {[%clk 0:00:02.5]} 29. Ne6 {[%clk 0:01:23.6]}
29... Bxe6 {[%clk 0:00:01.3]} 30. dxe6 {[%clk 0:01:24.5]} 30... Qh4 {[%clk
0:00:01.7]} 31. Qxe4 {[%clk 0:01:22.4]} 1-0

[Event "Early-Titled-Tuesday-Blitz-February-13-2024"]
[Site "Chess.com"]
[Date "2024.02.13"]
[Round "2"]
[White "Freeeeeeeeeeeeeeeeee"]
[Black "GrumbleBruno"]
[Result "0-1"]
[WhiteElo "2125"]
[BlackElo "2466"]
[TimeControl "180+1"]
[EndTime "8:18:29 PST"]
[Termination "GrumbleBruno won on time"]

1. e4 {[%clk 0:03:00.9]} 1... e5 {[%clk 0:02:59.2]} 2. Nc3 {[%clk 0:03:01]} 2...
Bb4 {[%clk 0:02:58.7]} 3. Nd5 {[%clk 0:02:57.9]} 3... Bc5 {[%clk 0:02:58.5]} 4.
Nf3 {[%clk 0:02:54.7]} 4... c6 {[%clk 0:02:57.8]} 5. Nc3 {[%clk 0:02:52.8]} 5...
d6 {[%clk 0:02:56.3]} 6. Na4 {[%clk 0:02:49.3]} 6... Bb6 {[%clk 0:02:55]} 7.
Nxb6 {[%clk 0:02:49.3]} 7... axb6 {[%clk 0:02:55.3]} 8. Bc4 {[%clk 0:02:46.8]}
8... Nf6 {[%clk 0:02:54.4]} 9. d3 {[%clk 0:02:43.9]} 9... O-O {[%clk 0:02:54.3]}
10. O-O {[%clk 0:02:42.1]} 10... b5 {[%clk 0:02:50.2]} 11. Bb3 {[%clk
0:02:41.6]} 11... Be6 {[%clk 0:02:50.3]} 12. Bg5 {[%clk 0:02:39.2]} 12... Nbd7
{[%clk 0:02:50.1]} 13. Qe2 {[%clk 0:02:38.3]} 13... Nc5 {[%clk 0:02:49.9]} 14.
Bxe6 {[%clk 0:02:34.8]} 14... Nxe6 {[%clk 0:02:49.2]} 15. Be3 {[%clk 0:02:34.7]}
15... b4 {[%clk 0:02:44.3]} 16. Nd2 {[%clk 0:02:33]} 16... c5 {[%clk 0:02:43.4]}
17. Nb3 {[%clk 0:02:25]} 17... Qc7 {[%clk 0:02:34.9]} 18. f4 {[%clk 0:02:00.3]}
18... exf4 {[%clk 0:02:33]} 19. Bxf4 {[%clk 0:01:53.8]} 19... Rae8 {[%clk
0:02:31.6]} 20. Bg3 {[%clk 0:01:50.4]} 20... Nd7 {[%clk 0:02:30.9]} 21. Qg4
{[%clk 0:01:48.6]} 21... Ne5 {[%clk 0:02:29]} 22. Bxe5 {[%clk 0:01:48.3]} 22...
dxe5 {[%clk 0:02:28.8]} 23. Rf5 {[%clk 0:01:42.8]} 23... b5 {[%clk 0:02:25]} 24.
Raf1 {[%clk 0:01:38.1]} 24... c4 {[%clk 0:02:24.4]} 25. Nd2 {[%clk 0:01:31.4]}
25... Nd4 {[%clk 0:02:17.8]} 26. Rg5 {[%clk 0:01:30.6]} 26... f6 {[%clk
0:02:17.8]} 27. Rh5 {[%clk 0:01:27.3]} 27... Qf7 {[%clk 0:02:11.7]} 28. c3
{[%clk 0:01:22.9]} 28... bxc3 {[%clk 0:02:07.7]} 29. bxc3 {[%clk 0:01:18.5]}
29... Ne6 {[%clk 0:02:03]} 30. dxc4 {[%clk 0:01:16.3]} 30... bxc4 {[%clk
0:02:02.9]} 31. Rhf5 {[%clk 0:01:04.3]} 31... Qa7+ {[%clk 0:01:54.5]} 32. Kh1
{[%clk 0:01:03]} 32... Qxa2 {[%clk 0:01:54.5]} 33. Rxf6 {[%clk 0:00:34.1]} 33...
Rxf6 {[%clk 0:01:49.9]} 34. Rxf6 {[%clk 0:00:31.8]} 34... Qxd2 {[%clk
0:01:49.6]} 35. h4 {[%clk 0:00:24.7]} 35... Qd7 {[%clk 0:01:40.6]} 36. h5 {[%clk
0:00:14]} 36... Rf8 {[%clk 0:01:38.3]} 37. Rxe6 {[%clk 0:00:12.7]} 37... Rf6
{[%clk 0:01:28.9]} 0-1

[Event "Early-Titled-Tuesday-Blitz-February-13-2024"]
[Site "Chess.com"]
[Date "2024.02.13"]
[Round "2"]
[White "GameOverBro"]
[Black "NovakRatko"]
[Result "1-0"]
[WhiteElo "2554"]
[BlackElo "2345"]
[TimeControl "180+1"]
[EndTime "8:18:30 PST"]
[Termination "GameOverBro won on time"]

1. e4 {[%clk 0:02:58.8]} 1... d5 {[%clk 0:03:00]} 2. exd5 {[%clk 0:02:58.3]}
2... c6 {[%clk 0:03:00.6]} 3. dxc6 {[%clk 0:02:56.8]} 3... Nxc6 {[%clk
0:03:01.5]} 4. Bc4 {[%clk 0:02:45.3]} 4... e5 {[%clk 0:03:01.2]} 5. d3 {[%clk
0:02:43.3]} 5... Bc5 {[%clk 0:03:01.1]} 6. Be3 {[%clk 0:02:42.1]} 6... Bxe3
{[%clk 0:03:00.8]} 7. fxe3 {[%clk 0:02:43]} 7... Qb6 {[%clk 0:03:01.3]} 8. Qd2
{[%clk 0:02:15.2]} 8... Qxb2 {[%clk 0:02:59.1]} 9. Qc3 {[%clk 0:02:15.1]} 9...
Qb6 {[%clk 0:02:57.1]} 10. Ke2 {[%clk 0:02:02.4]} 10... Nf6 {[%clk 0:02:54.3]}
11. Nd2 {[%clk 0:02:01.9]} 11... Bg4+ {[%clk 0:02:50]} 12. Ngf3 {[%clk
0:02:02.1]} 12... e4 {[%clk 0:02:48.7]} 13. dxe4 {[%clk 0:01:54]} 13... O-O
{[%clk 0:02:47.9]} 14. h3 {[%clk 0:01:53.5]} 14... Bh5 {[%clk 0:02:47.9]} 15.
Qb3 {[%clk 0:01:42.9]} 15... Qc7 {[%clk 0:02:45.6]} 16. g4 {[%clk 0:01:39.4]}
16... Bg6 {[%clk 0:02:42.9]} 17. Bd3 {[%clk 0:01:39.9]} 17... Rfe8 {[%clk
0:02:37.7]} 18. Qc4 {[%clk 0:01:23.2]} 18... a6 {[%clk 0:02:26.2]} 19. a4 {[%clk
0:01:23.6]} 19... Rac8 {[%clk 0:02:26]} 20. a5 {[%clk 0:01:19.9]} 20... Nxa5
{[%clk 0:02:24.3]} 21. Qxc7 {[%clk 0:01:19.7]} 21... Rxc7 {[%clk 0:02:17.7]} 22.
Rxa5 {[%clk 0:01:20.3]} 22... Nxe4 {[%clk 0:02:16.9]} 23. Nxe4 {[%clk
0:01:09.6]} 23... Bxe4 {[%clk 0:02:16.2]} 24. Rb1 {[%clk 0:01:09.4]} 24... Bc6
{[%clk 0:02:04]} 25. Nd4 {[%clk 0:01:07.7]} 25... Bd5 {[%clk 0:02:00.1]} 26.
Rxd5 {[%clk 0:01:07.1]} 1-0

[Event "Early-Titled-Tuesday-Blitz-February-13-2024"]
[Site "Chess.com"]
[Date "2024.02.13"]
[Round "2"]
[White "Flaccidmoves"]
[Black "Helenita13"]
[Result "1-0"]
[WhiteElo "2441"]
[BlackElo "1949"]
[TimeControl "180+1"]
[EndTime "8:18:30 PST"]
[Termination "Flaccidmoves won by resignation"]

1. c4 {[%clk 0:03:00.9]} 1... Nf6 {[%clk 0:02:58.3]} 2. Nc3 {[%clk 0:03:01.3]}
2... e6 {[%clk 0:02:57.4]} 3. e4 {[%clk 0:03:01.9]} 3... d5 {[%clk 0:02:54.5]}
4. e5 {[%clk 0:03:01.9]} 4... d4 {[%clk 0:02:54.8]} 5. exf6 {[%clk 0:02:59.6]}
5... dxc3 {[%clk 0:02:54.7]} 6. bxc3 {[%clk 0:03:00]} 6... gxf6 {[%clk
0:02:53.4]} 7. d4 {[%clk 0:03:00.6]} 7... b6 {[%clk 0:02:52.5]} 8. Qf3 {[%clk
0:02:59.7]} 8... c6 {[%clk 0:02:50.5]} 9. Bd3 {[%clk 0:02:41.7]} 9... Bb7 {[%clk
0:02:49.7]} 10. Ne2 {[%clk 0:02:39.5]} 10... Be7 {[%clk 0:02:49.9]} 11. Bh6
{[%clk 0:02:35.1]} 11... Nd7 {[%clk 0:02:49.6]} 12. Nf4 {[%clk 0:02:23.9]} 12...
Qc7 {[%clk 0:02:46.9]} 13. Nxe6 {[%clk 0:01:58.2]} 13... fxe6 {[%clk 0:02:42.3]}
14. Qh5+ {[%clk 0:01:58.7]} 14... Kd8 {[%clk 0:02:42]} 15. Bg7 {[%clk
0:01:59.3]} 15... Rg8 {[%clk 0:01:49.4]} 16. Qxh7 {[%clk 0:01:58.4]} 16... Rxg7
{[%clk 0:01:49.7]} 17. Qxg7 {[%clk 0:01:58.3]} 17... Qf4 {[%clk 0:01:44.4]} 18.
O-O {[%clk 0:01:43.2]} 18... Bd6 {[%clk 0:01:32.6]} 19. Qh7 {[%clk 0:01:05.9]}
19... Kc7 {[%clk 0:01:28.5]} 20. Rae1 {[%clk 0:01:01.1]} 20... Rg8 {[%clk
0:01:00.3]} 21. g3 {[%clk 0:00:58.3]} 21... Qg4 {[%clk 0:00:51.1]} 22. Re4
{[%clk 0:00:52.4]} 22... Rg7 {[%clk 0:00:31]} 23. Rxg4 {[%clk 0:00:37.9]} 23...
Rxh7 {[%clk 0:00:31.1]} 24. Bxh7 {[%clk 0:00:38.8]} 24... f5 {[%clk 0:00:31.5]}
25. Rg7 {[%clk 0:00:38.1]} 25... a6 {[%clk 0:00:29.7]} 26. Re1 {[%clk
0:00:37.9]} 1-0

[Event "Early-Titled-Tuesday-Blitz-February-13-2024"]
[Site "Chess.com"]
[Date "2024.02.13"]
[Round "2"]
[White "Vaathi_Coming"]
[Black "AsaHoffmann"]
[Result "1-0"]
[WhiteElo "2904"]
[BlackElo "2427"]
[TimeControl "180+1"]
[EndTime "8:18:35 PST"]
[Termination "Vaathi_Coming won by resignation"]

1. b3 {[%clk 0:03:00.9]} 1... d6 {[%clk 0:02:55]} 2. Bb2 {[%clk 0:03:01.8]} 2...
e5 {[%clk 0:02:55]} 3. c4 {[%clk 0:03:01.5]} 3... Nf6 {[%clk 0:02:54.7]} 4. Nc3
{[%clk 0:03:01.5]} 4... Be7 {[%clk 0:02:54]} 5. g3 {[%clk 0:03:02]} 5... c6
{[%clk 0:02:53.7]} 6. Bg2 {[%clk 0:03:02.1]} 6... Be6 {[%clk 0:02:53.5]} 7. d4
{[%clk 0:03:01.5]} 7... Nbd7 {[%clk 0:02:48]} 8. Nf3 {[%clk 0:02:58.7]} 8... h6
{[%clk 0:02:45.6]} 9. Qc2 {[%clk 0:02:53.9]} 9... O-O {[%clk 0:02:42.1]} 10. Rd1
{[%clk 0:02:49.9]} 10... Qc7 {[%clk 0:02:41]} 11. h3 {[%clk 0:02:41.8]} 11...
exd4 {[%clk 0:02:28.7]} 12. Nxd4 {[%clk 0:02:42.7]} 12... a5 {[%clk 0:02:27.8]}
13. O-O {[%clk 0:02:37.9]} 13... Nc5 {[%clk 0:02:27.3]} 14. e4 {[%clk
0:02:30.4]} 14... Rfe8 {[%clk 0:02:25.7]} 15. f4 {[%clk 0:02:25.8]} 15... Rad8
{[%clk 0:02:25]} 16. g4 {[%clk 0:01:56.8]} 16... Bc8 {[%clk 0:02:22.6]} 17. Nce2
{[%clk 0:01:54]} 17... Bf8 {[%clk 0:02:21.5]} 18. Ng3 {[%clk 0:01:54.2]} 18...
Nh7 {[%clk 0:02:01]} 19. Ndf5 {[%clk 0:01:39.6]} 19... Bxf5 {[%clk 0:01:54.1]}
20. Nxf5 {[%clk 0:01:38.6]} 20... g6 {[%clk 0:01:47.7]} 21. Qc3 {[%clk
0:01:35.3]} 21... f6 {[%clk 0:01:44.7]} 22. Ng3 {[%clk 0:01:33.3]} 22... Bg7
{[%clk 0:01:43.4]} 23. Qc2 {[%clk 0:01:25.2]} 23... Nf8 {[%clk 0:01:41.9]} 24.
Bc3 {[%clk 0:01:10.2]} 24... b6 {[%clk 0:01:39.7]} 25. Qb2 {[%clk 0:01:08.2]}
25... Qf7 {[%clk 0:01:28.1]} 26. e5 {[%clk 0:00:50.7]} 26... dxe5 {[%clk
0:01:23.4]} 27. Rxd8 {[%clk 0:00:51.6]} 27... Rxd8 {[%clk 0:01:22.5]} 28. fxe5
{[%clk 0:00:52.5]} 28... Nh7 {[%clk 0:01:00.2]} 29. exf6 {[%clk 0:00:46.7]}
29... Nxf6 {[%clk 0:00:55.2]} 30. Bxf6 {[%clk 0:00:45]} 30... Bxf6 {[%clk
0:00:49.6]} 31. Qxf6 {[%clk 0:00:45.1]} 31... Qxf6 {[%clk 0:00:48.9]} 32. Rxf6
{[%clk 0:00:46]} 1-0

[Event "Early-Titled-Tuesday-Blitz-February-13-2024"]
[Site "Chess.com"]
[Date "2024.02.13"]
[Round "2"]
[White "cyrdap"]
[Black "Happy1712Drummer"]
[Result "1-0"]
[WhiteElo "2643"]
[BlackElo "2390"]
[TimeControl "180+1"]
[EndTime "8:18:37 PST"]
[Termination "cyrdap won on time"]

1. d4 {[%clk 0:02:55.8]} 1... d5 {[%clk 0:02:58.1]} 2. Nf3 {[%clk 0:02:55.4]}
2... e6 {[%clk 0:02:57.3]} 3. c4 {[%clk 0:02:55.9]} 3... a6 {[%clk 0:02:55.2]}
4. Nc3 {[%clk 0:02:55]} 4... dxc4 {[%clk 0:02:54.5]} 5. a4 {[%clk 0:02:54.5]}
5... Nc6 {[%clk 0:02:53.8]} 6. e3 {[%clk 0:02:54.7]} 6... Na5 {[%clk 0:02:52.1]}
7. Be2 {[%clk 0:02:52.3]} 7... Nf6 {[%clk 0:02:47.1]} 8. O-O {[%clk 0:02:52.2]}
8... c5 {[%clk 0:02:47.3]} 9. Ne5 {[%clk 0:02:52.2]} 9... cxd4 {[%clk
0:02:33.8]} 10. exd4 {[%clk 0:02:51.7]} 10... Bd6 {[%clk 0:02:29.4]} 11. Nxc4
{[%clk 0:02:51.2]} 11... Nxc4 {[%clk 0:02:29.7]} 12. Bxc4 {[%clk 0:02:51.4]}
12... O-O {[%clk 0:02:30.4]} 13. Bg5 {[%clk 0:02:51.2]} 13... h6 {[%clk
0:01:44.9]} 14. Be3 {[%clk 0:02:50.5]} 14... Bxh2+ {[%clk 0:01:37]} 15. Kh1
{[%clk 0:02:47.4]} 15... Bc7 {[%clk 0:01:35.3]} 16. Bd3 {[%clk 0:02:45.2]} 16...
Qd6 {[%clk 0:01:31.8]} 17. g3 {[%clk 0:02:43.6]} 17... b6 {[%clk 0:01:31.4]} 18.
Kg1 {[%clk 0:02:29]} 18... Bb7 {[%clk 0:01:29.6]} 19. Rc1 {[%clk 0:02:23.2]}
19... Rfd8 {[%clk 0:01:05.4]} 20. Bf4 {[%clk 0:02:18.7]} 20... Qc6 {[%clk
0:01:00.9]} 21. Ne4 {[%clk 0:02:17.6]} 21... Qd5 {[%clk 0:00:42.3]} 22. Rxc7
{[%clk 0:01:50.9]} 22... Nxe4 {[%clk 0:00:41.3]} 23. Rxb7 {[%clk 0:01:26.2]}
23... Qxb7 {[%clk 0:00:36.6]} 24. Qg4 {[%clk 0:01:23.2]} 24... Nf6 {[%clk
0:00:33.1]} 25. Qe2 {[%clk 0:01:15.5]} 25... Rxd4 {[%clk 0:00:11.8]} 26. Be5
{[%clk 0:01:15.3]} 26... Qd5 {[%clk 0:00:12]} 27. Rd1 {[%clk 0:01:06.8]} 27...
Nd7 {[%clk 0:00:02.3]} 28. Bxd4 {[%clk 0:01:05.9]} 1-0

[Event "Early-Titled-Tuesday-Blitz-February-13-2024"]
[Site "Chess.com"]
[Date "2024.02.13"]
[Round "2"]
[White "Thunderbolt135"]
[Black "FGHSMN"]
[Result "0-1"]
[WhiteElo "2651"]
[BlackElo "2991"]
[TimeControl "180+1"]
[EndTime "8:18:40 PST"]
[Termination "FGHSMN won by checkmate"]

1. Nf3 {[%clk 0:03:00.9]} 1... Nf6 {[%clk 0:02:59.6]} 2. d4 {[%clk 0:03:00.1]}
2... b6 {[%clk 0:02:59.6]} 3. Bg5 {[%clk 0:03:00.3]} 3... Ne4 {[%clk 0:02:59]}
4. Bf4 {[%clk 0:03:00.6]} 4... Bb7 {[%clk 0:02:59.4]} 5. Nbd2 {[%clk 0:03:00.8]}
5... e6 {[%clk 0:02:55.7]} 6. e3 {[%clk 0:03:00.3]} 6... Be7 {[%clk 0:02:51.8]}
7. Nxe4 {[%clk 0:03:00]} 7... Bxe4 {[%clk 0:02:51.4]} 8. Bd3 {[%clk 0:03:00.6]}
8... Bxd3 {[%clk 0:02:38.6]} 9. Qxd3 {[%clk 0:03:01.5]} 9... d5 {[%clk
0:02:37.1]} 10. O-O {[%clk 0:02:56.2]} 10... O-O {[%clk 0:02:37.2]} 11. c4
{[%clk 0:02:33.6]} 11... Bd6 {[%clk 0:02:27.6]} 12. Bxd6 {[%clk 0:02:25.5]}
12... Qxd6 {[%clk 0:02:28.5]} 13. Rac1 {[%clk 0:02:26.2]} 13... c6 {[%clk
0:02:23.9]} 14. Rc2 {[%clk 0:01:23.1]} 14... Nd7 {[%clk 0:02:18.3]} 15. cxd5
{[%clk 0:01:21.5]} 15... exd5 {[%clk 0:02:19.2]} 16. Rfc1 {[%clk 0:01:08.2]}
16... Rfc8 {[%clk 0:02:18.5]} 17. Qf5 {[%clk 0:01:01.6]} 17... Rc7 {[%clk
0:02:06.2]} 18. b4 {[%clk 0:00:33.8]} 18... g6 {[%clk 0:01:43.9]} 19. Qh3 {[%clk
0:00:16.3]} 19... Qxb4 {[%clk 0:01:40.9]} 20. Ng5 {[%clk 0:00:15.7]} 20... Nf8
{[%clk 0:01:38.9]} 21. Qh6 {[%clk 0:00:08.9]} 21... Rac8 {[%clk 0:01:35.8]} 22.
h4 {[%clk 0:00:09.4]} 22... Qe7 {[%clk 0:01:32.4]} 23. h5 {[%clk 0:00:08.4]}
23... f6 {[%clk 0:01:31.5]} 24. Nf3 {[%clk 0:00:05.3]} 24... g5 {[%clk 0:01:32]}
25. Nd2 {[%clk 0:00:03.2]} 25... Ne6 {[%clk 0:01:29.1]} 26. Nf1 {[%clk
0:00:02.5]} 26... Nd8 {[%clk 0:01:27.9]} 27. Ng3 {[%clk 0:00:02.9]} 27... Nf7
{[%clk 0:01:28.5]} 28. Nf5 {[%clk 0:00:03.4]} 28... Nxh6 {[%clk 0:01:28.4]} 29.
Nxe7+ {[%clk 0:00:04.1]} 29... Rxe7 {[%clk 0:01:28.9]} 30. Rxc6 {[%clk 0:00:05]}
30... Rxc6 {[%clk 0:01:27.6]} 31. Rxc6 {[%clk 0:00:05.9]} 31... Ng4 {[%clk
0:01:24]} 32. Rd6 {[%clk 0:00:04.5]} 32... Rc7 {[%clk 0:01:23]} 33. f3 {[%clk
0:00:02.9]} 33... Rc1# {[%clk 0:01:22.2]} 0-1

[Event "Early-Titled-Tuesday-Blitz-February-13-2024"]
[Site "Chess.com"]
[Date "2024.02.13"]
[Round "2"]
[White "kereswasbest"]
[Black "HajiyevKanan"]
[Result "0-1"]
[WhiteElo "2231"]
[BlackElo "2503"]
[TimeControl "180+1"]
[EndTime "8:18:45 PST"]
[Termination "HajiyevKanan won on time"]

1. d4 {[%clk 0:03:00.9]} 1... d5 {[%clk 0:02:57.9]} 2. c4 {[%clk 0:02:56.3]}
2... c6 {[%clk 0:02:58.1]} 3. cxd5 {[%clk 0:02:56.1]} 3... cxd5 {[%clk 0:02:59]}
4. Nc3 {[%clk 0:02:56.1]} 4... Nf6 {[%clk 0:02:59.5]} 5. Bf4 {[%clk 0:02:56.5]}
5... a6 {[%clk 0:02:59.8]} 6. e3 {[%clk 0:02:57]} 6... Nc6 {[%clk 0:03:00.1]} 7.
Bd3 {[%clk 0:02:57.2]} 7... Bg4 {[%clk 0:03:00.6]} 8. Nf3 {[%clk 0:02:50.5]}
8... e6 {[%clk 0:02:59.7]} 9. Qb3 {[%clk 0:02:49.6]} 9... Na5 {[%clk 0:02:59.5]}
10. Qa4+ {[%clk 0:02:48.8]} 10... Nc6 {[%clk 0:02:44.9]} 11. Ne5 {[%clk
0:02:46]} 11... Qb6 {[%clk 0:02:42.6]} 12. O-O {[%clk 0:01:59.7]} 12... Be7
{[%clk 0:02:36.2]} 13. Nxg4 {[%clk 0:01:47.2]} 13... Nxg4 {[%clk 0:02:36.4]} 14.
f3 {[%clk 0:01:45.9]} 14... Nf6 {[%clk 0:02:24.3]} 15. Nb5 {[%clk 0:01:20.8]}
15... O-O {[%clk 0:02:17.4]} 16. Nc3 {[%clk 0:00:41.3]} 16... Qxb2 {[%clk
0:02:16.4]} 17. Rfc1 {[%clk 0:00:35.2]} 17... Qa3 {[%clk 0:02:15.9]} 18. Qd1
{[%clk 0:00:27.1]} 18... Rfc8 {[%clk 0:02:15.8]} 19. Na4 {[%clk 0:00:19.4]}
19... Nb4 {[%clk 0:02:10.5]} 20. Bf1 {[%clk 0:00:15.5]} 20... Nh5 {[%clk
0:01:56.1]} 21. Nb6 {[%clk 0:00:13.5]} 21... Rxc1 {[%clk 0:01:44.4]} 22. Rxc1
{[%clk 0:00:14.4]} 22... Re8 {[%clk 0:01:40]} 23. Be5 {[%clk 0:00:13.7]} 23...
Qxe3+ {[%clk 0:01:35.1]} 24. Kh1 {[%clk 0:00:12.9]} 24... Nc6 {[%clk 0:01:32]}
25. Bc7 {[%clk 0:00:10.7]} 25... Qxd4 {[%clk 0:01:28.9]} 26. Nd7 {[%clk
0:00:08.1]} 26... Qxd1 {[%clk 0:01:26.9]} 27. Rxd1 {[%clk 0:00:07.8]} 27... Rc8
{[%clk 0:01:21]} 28. Bb6 {[%clk 0:00:05]} 28... Nf6 {[%clk 0:01:20.7]} 29. Nc5
{[%clk 0:00:05]} 29... Bxc5 {[%clk 0:01:10.5]} 30. Bxc5 {[%clk 0:00:04.7]} 30...
h6 {[%clk 0:01:08.1]} 31. Bb6 {[%clk 0:00:04]} 31... Nb4 {[%clk 0:01:07.6]} 32.
a3 {[%clk 0:00:03.7]} 32... Rc6 {[%clk 0:01:03.5]} 33. Bd4 {[%clk 0:00:01.4]}
33... Nc2 {[%clk 0:01:03.8]} 0-1